lending/lending_fUSD_20260209
["ID","MTS","AMOUNT","RATE_DAILY","PERIOD"]
[404837340,1770609041103,-581.12,0.00044448,120]
[404837341,1770609041113,-581.12,0.00044448,120]
[404837342,1770609041123,-581.12,0.00044448,120]
[404837343,1770609041133,-581.12,0.00044448,120]
[404837344,1770609041142,-581.12,0.00044448,120]
[404837345,1770609041151,-581.12,0.00044448,120]
[404837346,1770609041162,-500.0,0.00044448,120]
[404837347,1770609041172,-581.12,0.00044448,120]
[404837348,1770609041183,-500.0,0.00044448,120]
[404837349,1770609041192,-581.12,0.00044448,120]
[404837350,1770609041204,-500.0,0.00044448,120]
[404837351,1770609041218,-581.12,0.00044448,120]
[404837352,1770609041228,-500.0,0.00044448,120]
[404837353,1770609041239,-581.12,0.00044448,120]
[404837354,1770609041249,-500.0,0.00044448,120]
[404837355,1770609041260,-581.12,0.00044448,120]
[404837356,1770609041270,-500.0,0.00044448,120]
[404837357,1770609041281,-581.12,0.00044448,120]
[404837358,1770609041291,-500.0,0.00044448,120]
[404837359,1770609041301,-581.12,0.00044448,120]
[404837360,1770609041312,-500.0,0.00044448,120]
[404837361,1770609041322,-581.12,0.00044448,120]
[404837362,1770609041333,-500.0,0.00044448,120]
[404837363,1770609041343,-581.22092342,0.00044448,120]
[404837364,1770609041353,-500.0,0.00044448,120]
[404837365,1770609041364,-500.0,0.00044448,120]
[404837366,1770609041373,-500.0,0.00044448,120]
[404837367,1770609041383,-500.0,0.00044448,120]
[404837368,1770609041392,-500.0,0.00044448,120]
[404837369,1770609041403,-500.0,0.00044448,120]
[404837370,1770609041413,-500.0,0.00044448,120]
[404837371,1770609041423,-500.0,0.00044448,120]
[404837372,1770609041432,-510.89,0.00044448,120]
[404837373,1770609041442,-500.0,0.00044448,120]
[404837374,1770609041451,-587.98423764,0.00044448,120]
[404837375,1770609041461,-155.222338,0.00044449,120]
[404837376,1770609041470,-151.0,0.00044449,120]
[404837377,1770609041479,-151.0,0.00044449,120]
[404837378,1770609041488,-151.0,0.00044449,120]
[404837379,1770609041498,-151.0,0.00044449,120]
[404837380,1770609041507,-151.0,0.00044449,120]
[404837381,1770609041516,-151.0,0.00044449,120]
[404837382,1770609041525,-151.0,0.00044449,120]
[404837383,1770609041534,-151.0,0.00044449,120]
[404837384,1770609041543,-151.0,0.00044449,120]
[404837385,1770609041553,-151.0,0.00044449,120]
[404837386,1770609041562,-151.0,0.00044449,120]
[404837387,1770609041571,-151.0,0.00044449,120]
[404837388,1770609041580,-219.113498,0.00044449,120]
[404837389,1770609041590,-154.876343,0.00044449,120]
[404837390,1770609041599,-154.248476,0.00044449,60]
[404837391,1770609041608,-151.0,0.00044449,120]
[404837392,1770609041617,-167.059965,0.00044449,120]
[404837393,1770609041626,-151.0,0.00044449,120]
[404837394,1770609041635,-151.0,0.00044449,120]
[404837395,1770609041644,-151.0,0.00044449,120]
[404837396,1770609041653,-151.0,0.00044449,120]
[404837397,1770609041662,-151.0,0.00044449,120]
[404837398,1770609041671,-156.529385,0.00044449,120]
[404837399,1770609041680,-151.0,0.00044449,7]
[404837400,1770609041690,-151.0,0.00044449,7]
[404837401,1770609041699,-151.0,0.00044449,7]
[404837402,1770609041708,-151.0,0.00044449,7]
[404837403,1770609041717,-151.0,0.00044449,7]
[404837404,1770609041727,-151.0,0.00044449,7]
[404837405,1770609041736,-151.0,0.00044449,7]
[404837406,1770609041746,-151.0,0.00044449,7]
[404837407,1770609041757,-151.0,0.00044449,7]
[404837408,1770609041768,-151.0,0.00044449,7]
[404837409,1770609041779,-151.0,0.00044449,7]
[404837410,1770609041788,-151.0,0.00044449,7]
[404837411,1770609041798,-151.0,0.00044449,7]
[404837412,1770609041808,-151.0,0.00044449,7]
[404837413,1770609041817,-151.0,0.00044449,7]
[404837414,1770609041826,-151.0,0.00044449,7]
[404837415,1770609041837,-151.0,0.00044449,7]
[404837416,1770609041847,-279.556976,0.00044449,7]
[404837417,1770609041857,-141726.66314332,0.00044449,54]
[404837418,1770609041867,-4588328.37578487,0.00044449,10]
[404837419,1770609041947,-3378.65,0.00044449,10]
[404837420,1770609041983,-412.0,0.00044359,2]
[404837421,1770609041992,-4876.5435198,0.00044449,10]
[404837422,1770609042003,-574.744,0.00044449,10]
[404837423,1770609042021,-719.71370044,0.00044449,10]
[404837424,1770609042036,-2307.9,0.00044449,10]
[404837425,1770609042051,-1421322.95785393,0.00044449,10]
[404837438,1770609043648,-3776.48728256,0.00044277,28]
[404837439,1770609043657,-6179.61271744,0.00044449,10]
[404837440,1770609043712,-149.91038367,0.00044449,10]
[404837441,1770609043722,-640071.00000002,0.00044449,10]
[404837442,1770609045641,-217.1067254,0.000216,2]
[404837443,1770609045650,-300.0,0.00040548,2]
[404837444,1770609045659,-113.37431391,0.0004274,7]
[404837445,1770609045694,-686.62568609,0.0004274,7]
[404837446,1770609045703,-1793.29499,0.00044449,10]
[404837447,1770609045848,-4350.60006,0.00044449,10]
[404837448,1770609045859,-10480.0,0.00044449,10]
[404837449,1770609045875,-6019.9928199,0.00044449,10]
[404837450,1770609045886,-2685.27,0.00044449,10]
[404837659,1770609066311,195.0,0.00034247,120]
[404837660,1770609277935,21625.49384255,0.00035616,30]
[404837661,1770609333771,21880.90832652,0.00035616,30]
[404837662,1770609486489,195.0,0.00033212,120]
[404837663,1770609486588,195.0,0.00034422,120]
[404837664,1770609486698,195.0,0.00034422,120]
[404837665,1770609640933,166.18,0.00017158,2]
[404837667,1770610157126,-500.0,0.00032516,2]
[404837668,1770610157146,-500.0,0.00032516,2]
[404837669,1770610157167,-337.66241168,0.00032516,2]
[404837670,1770610157186,-162.29867449,0.00032516,2]
[404837671,1770610157208,-2010.46109935,0.00032541,2]
[404837672,1770610157228,-282.45138859,0.00032541,2]
[404837673,1770610157248,-162.29867449,0.00032566,2]
[404837674,1770610157268,-511.0,0.00032616,2]
[404837675,1770610157290,-871.42981111,0.00033308,2]
[404837687,1770610231897,-1139.03128824,0.00033308,2]
[404837688,1770610231907,-1170.54811235,0.00034743,2]
[404837689,1770610231918,-1265.60656681,0.00034743,2]
[404837690,1770610231929,-166.7450837,0.00034756,2]
[404837691,1770610231940,-361.34331526,0.00034765,7]
[404837692,1770610231950,-500.0,0.00034765,7]
[404837693,1770610231960,-360.47961072,0.00034765,7]
[404837694,1770610231970,-9203.53364109,0.00034766,2]
[404837695,1770610231982,-33323.65308214,0.00034766,2]
[404837696,1770610232057,-451.28744886,0.00034766,2]
[404837699,1770610238036,-165.92,0.00031751,2]
[404837700,1770610238046,-286.91744493,0.00034765,7]
[404837701,1770610238054,-644.67014107,0.00034765,7]
[404837702,1770610238064,-500.0,0.00034765,7]
[404837703,1770610238074,-160.22421606,0.00034765,7]
[404837704,1770610238083,-258047.0526984,0.00034766,2]
[404837705,1770610238095,-1086.4395005,0.00034766,2]
[404837706,1770610238106,-71343.00000003,0.00034766,2]
[404837707,1770610238117,-1650.0,0.00034766,2]
[404837708,1770610238128,-1606.43883667,0.00034766,2]
[404837709,1770610238140,-292.212863,0.00034766,2]
[404837710,1770610238151,-1407.60412328,0.00034766,2]
[404837711,1770610238161,-125957.30183054,0.00034766,2]
[404837712,1770610238173,-2995631.47597549,0.00034766,2]
[404837713,1770610238182,-2010.46109935,0.00034843,2]
[404837714,1770610238191,-162.18,0.00035,4]
[404837715,1770610238200,-2010.46109935,0.00035611,2]
[404837716,1770610238210,-951.61,0.00035632,2]
[404837717,1770610238219,-9999.99,0.00035632,2]
[404837718,1770610238228,-439.35,0.00035632,2]
[404837719,1770610238238,-250.0,0.00035768,2]
[404837721,1770610238248,-250.0,0.00035768,2]
[404837723,1770610238257,-2010.46109935,0.00036378,2]
[404837724,1770610238268,-250.0,0.00036639,2]
[404837725,1770610238277,-2213.49,0.00036763,120]
[404837726,1770610238287,-1931.58942785,0.000368,2]
[404837727,1770610238296,-2832.36546192,0.000368,2]
[404837728,1770610238306,-2405.0,0.00036848,5]
[404837729,1770610238315,-215.0283037,0.000369,2]
[404837730,1770610238324,-1673.291,0.00037009,47]
[404837731,1770610238334,-179.229,0.00037009,47]
[404837732,1770610238343,-419.16544585,0.00037009,19]
[404837733,1770610238353,-421.03,0.000371,2]
[404837747,1770610238521,-6950.16,0.000371,2]
[404837750,1770610238537,-2010.46109935,0.00037145,2]
[404837752,1770610238547,-1931.58942785,0.00037639,2]
[404837753,1770610238557,-215.02830366,0.00037728,2]
[404837755,1770610238567,-2832.36546192,0.00037879,2]
[404837757,1770610238576,-2010.46109935,0.00037913,2]
[404837759,1770610238586,-1931.58942785,0.00038478,2]
[404837761,1770610238596,-215.02830366,0.00038556,2]
[404837762,1770610238606,-2010.46109935,0.0003868,2]
[404837763,1770610238616,-2832.36546192,0.00038957,2]
[404837764,1770610238626,-502.0,0.00039178,2]
[404837765,1770610238635,-1931.58942785,0.00039317,2]
[404837766,1770610238644,-215.02830366,0.00039383,2]
[404837767,1770610238653,-2010.46109935,0.00039447,2]
[404837768,1770610238663,-1170.54811233,0.00039547,2]
[404837769,1770610238672,-1265.6065668,0.00039547,2]
[404837770,1770610238682,-807.6851987,0.0004,3]
[404837771,1770610238692,-150.0,0.00040009,7]
[404837772,1770610238701,-150.0,0.00040009,7]
[404837773,1770610238711,-150.0,0.00040009,7]
[404837774,1770610238720,-150.0,0.00040009,7]
[404837775,1770610238729,-150.0,0.00040009,7]
[404837776,1770610238739,-150.0,0.00040009,7]
[404837777,1770610238748,-150.0,0.00040009,7]
[404837778,1770610238757,-2832.36546192,0.00040036,28]
[404837779,1770610238767,-1931.58942785,0.00040156,15]
[404837780,1770610238776,-215.02830366,0.00040211,15]
[404837781,1770610238786,-2010.46109935,0.00040215,2]
[404837782,1770610238795,-1000.0,0.00040548,2]
[404837783,1770610238804,-2010.46109935,0.00040982,2]
[404837784,1770610238814,-1931.58942785,0.00040994,15]
[404837785,1770610238823,-215.02830366,0.00041039,15]
[404837786,1770610238833,-2832.36546192,0.00041114,28]
[404837787,1770610238842,-166.66,0.00041279,30]
[404837788,1770610238853,-6950.16,0.000413,2]
[404837789,1770610238863,-2010.46109935,0.0004175,2]
[404837790,1770610238872,-35794.0,0.00041768,2]
[404837791,1770610238881,-1931.58942785,0.00041833,15]
[404837792,1770610238890,-215.02830366,0.00041867,15]
[404837793,1770610238900,-203.9,0.00041932,2]
[404837794,1770610238909,-1212.11,0.00041983,2]
[404837795,1770610238920,-1133.59,0.00042056,120]
[404837796,1770610238929,-586.0,0.00042069,2]
[404837797,1770610238939,-421.03,0.000421,30]
[404837798,1770610238948,-166.66,0.00042148,30]
[404837799,1770610238957,-2832.36546192,0.00042193,28]
[404837800,1770610238967,-2010.46109935,0.00042517,2]
[404837801,1770610238976,-1931.58942785,0.00042672,15]
[404837802,1770610238985,-215.02830366,0.00042694,15]
[404837803,1770610238995,-1000.0,0.000427,2]
[404837804,1770610239004,-2500.0,0.0004274,7]
[404837805,1770610239014,-166.66,0.00043017,30]
[404837806,1770610239023,-40582.0,0.00043036,30]
[404837807,1770610239033,-3240.0,0.00043136,120]
[404837808,1770610239043,-200.0,0.00043169,2]
[404837809,1770610239053,-2831.16,0.00043198,2]
[404837810,1770610239062,-6587.0,0.00043253,2]
[404837811,1770610239072,-412.0,0.00043253,2]
[404837812,1770610239082,-2832.36546192,0.00043271,28]
[404837813,1770610239091,-2010.46109935,0.00043284,2]
[404837814,1770610239100,-226.15,0.00043468,2]
[404837815,1770610239109,-40582.0,0.0004348,30]
[404837816,1770610239120,-810.72494164,0.000435,120]
[404837817,1770610239130,-1931.58942785,0.00043511,15]
[404837818,1770610239139,-215.02830366,0.00043522,15]
[404837819,1770610239149,-2000.0,0.000437,2]
[404837820,1770610239159,-533.16956705,0.0004377,120]
[404837821,1770610239168,-500.0,0.00043773,10]
[404837822,1770610239178,-1611.48287488,0.00043835,120]
[404837823,1770610239187,-166.66,0.00043886,30]
[404837824,1770610239198,-40582.0,0.00043923,30]
[404837825,1770610239208,-6950.16,0.00044,2]
[404837826,1770610239218,-324.0,0.00044,60]
[404837827,1770610239228,-2010.46109935,0.00044052,2]
[404837828,1770610239239,-586.0,0.00044173,2]
[404837829,1770610239249,-2000.0,0.00044233,3]
[404837830,1770610239260,-203.9,0.00044261,2]
[404837831,1770610239270,-622.84179704,0.00044276,28]
[404837832,1770610239281,-250.0,0.00044276,28]
[404837833,1770610239292,-250.0,0.00044276,28]
[404837834,1770610239301,-250.0,0.00044276,28]
[404837835,1770610239311,-250.0,0.00044276,28]
[404837836,1770610239320,-250.0,0.00044276,28]
[404837837,1770610239329,-250.0,0.00044276,28]
[404837838,1770610239338,-250.0,0.00044276,28]
[404837839,1770610239347,-250.0,0.00044276,28]
[404837840,1770610239356,-261.1907146,0.00044276,28]
[404837841,1770610239367,-500.0,0.00044276,28]
[404837842,1770610239376,-500.0,0.00044276,28]
[404837843,1770610239385,-500.0,0.00044276,28]
[404837844,1770610239394,-500.0,0.00044276,28]
[404837845,1770610239405,-500.0,0.00044276,28]
[404837846,1770610239418,-500.0,0.00044276,28]
[404837847,1770610239429,-500.0,0.00044276,28]
[404837848,1770610239438,-500.0,0.00044276,28]
[404837849,1770610239447,-500.0,0.00044276,28]
[404837850,1770610239456,-500.0,0.00044276,28]
[404837851,1770610239465,-500.0,0.00044276,28]
[404837852,1770610239474,-250.0,0.00044276,28]
[404837853,1770610239486,-250.0,0.00044276,28]
[404837854,1770610239495,-250.0,0.00044276,28]
[404837855,1770610239505,-250.0,0.00044276,28]
[404837856,1770610239515,-250.0,0.00044276,28]
[404837857,1770610239526,-250.0,0.00044276,28]
[404837858,1770610239536,-250.0,0.00044276,28]
[404837859,1770610239546,-250.0,0.00044276,28]
[404837860,1770610239555,-250.0,0.00044276,28]
[404837861,1770610239565,-250.0,0.00044276,28]
[404837862,1770610239574,-250.0,0.00044276,28]
[404837863,1770610239584,-250.0,0.00044276,28]
[404837864,1770610239594,-250.0,0.00044276,28]
[404837865,1770610239607,-250.0,0.00044276,28]
[404837866,1770610239618,-250.0,0.00044276,28]
[404837867,1770610239628,-250.0,0.00044276,28]
[404837868,1770610239637,-250.0,0.00044276,28]
[404837869,1770610239647,-250.0,0.00044276,28]
[404837870,1770610239656,-250.0,0.00044276,28]
[404837871,1770610239665,-250.0,0.00044276,28]
[404837872,1770610239675,-250.0,0.00044276,28]
[404837873,1770610239684,-250.0,0.00044276,28]
[404837874,1770610239693,-500.0,0.00044276,28]
[404837875,1770610239702,-500.0,0.00044276,28]
[404837876,1770610239711,-500.0,0.00044276,28]
[404837877,1770610239720,-511.2491398,0.00044276,28]
[404837878,1770610239729,-250.0,0.00044276,28]
[404837879,1770610239738,-250.0,0.00044276,28]
[404837880,1770610239748,-250.0,0.00044276,28]
[404837881,1770610239757,-250.0,0.00044276,28]
[404837882,1770610239767,-250.0,0.00044276,28]
[404837883,1770610239782,-250.0,0.00044276,28]
[404837884,1770610239792,-250.0,0.00044276,28]
[404837885,1770610239801,-250.0,0.00044276,28]
[404837886,1770610239811,-250.0,0.00044276,28]
[404837887,1770610239819,-250.0,0.00044276,28]
[404837888,1770610239829,-250.0,0.00044276,28]
[404837889,1770610239838,-1000.0,0.00044321,10]
[404837890,1770610239847,-7066.5094,0.00044349,2]
[404837891,1770610239856,-215.02830366,0.0004435,15]
[404837892,1770610239866,-1931.58942785,0.0004435,15]
[404837893,1770610239876,-2832.36546192,0.0004435,28]
[404837895,1770610239885,-1170.54811233,0.0004435,2]
[404837896,1770610239895,-1265.6065668,0.0004435,2]
[404837897,1770610239904,-553.00284193,0.00044356,120]
[404837898,1770610239914,-500.0,0.00044356,120]
[404837899,1770610239923,-500.0,0.00044356,120]
[404837900,1770610239932,-500.0,0.00044356,120]
[404837901,1770610239941,-500.0,0.00044356,120]
[404837902,1770610239950,-500.0,0.00044356,120]
[404837903,1770610239959,-500.0,0.00044356,120]
[404837904,1770610239969,-500.0,0.00044356,120]
[404837905,1770610239979,-500.0,0.00044356,120]
[404837906,1770610239988,-500.0,0.00044356,120]
[404837907,1770610239997,-500.0,0.00044356,120]
[404837908,1770610240007,-500.0,0.00044356,120]
[404837909,1770610240017,-500.0,0.00044356,120]
[404837910,1770610240026,-637.25115948,0.00044356,120]
[404837911,1770610240036,-500.0,0.00044356,120]
[404837912,1770610240045,-500.0,0.00044356,120]
[404837913,1770610240055,-524.56136285,0.00044356,120]
[404837914,1770610240065,-500.0,0.00044356,120]
[404837915,1770610240075,-500.0,0.00044356,120]
[404837916,1770610240086,-500.0,0.00044356,120]
[404837917,1770610240096,-500.0,0.00044356,120]
[404837918,1770610240106,-500.0,0.00044356,120]
[404837919,1770610240116,-197.5501983,0.00044356,120]
[404837920,1770610240127,-500.0,0.00044356,120]
[404837921,1770610240135,-500.0,0.00044356,120]
[404837922,1770610240144,-500.0,0.00044356,120]
[404837923,1770610240154,-500.0,0.00044356,120]
[404837924,1770610240165,-616.59064793,0.00044356,120]
[404837925,1770610240174,-500.0,0.00044356,120]
[404837926,1770610240183,-500.0,0.00044356,120]
[404837927,1770610240192,-500.0,0.00044356,120]
[404837928,1770610240201,-500.0,0.00044356,120]
[404837929,1770610240210,-500.0,0.00044356,120]
[404837930,1770610240219,-500.0,0.00044356,120]
[404837931,1770610240228,-500.0,0.00044356,120]
[404837932,1770610240237,-500.0,0.00044356,120]
[404837933,1770610240246,-500.0,0.00044356,120]
[404837934,1770610240256,-500.0,0.00044356,120]
[404837935,1770610240265,-500.0,0.00044356,120]
[404837936,1770610240274,-500.0,0.00044356,120]
[404837937,1770610240283,-500.0,0.00044356,120]
[404837938,1770610240292,-500.0,0.00044356,120]
[404837939,1770610240301,-500.0,0.00044356,120]
[404837940,1770610240310,-500.0,0.00044356,120]
[404837941,1770610240319,-500.0,0.00044356,120]
[404837942,1770610240328,-500.0,0.00044356,120]
[404837943,1770610240338,-500.0,0.00044356,120]
[404837944,1770610240347,-500.0,0.00044356,120]
[404837945,1770610240356,-500.0,0.00044356,120]
[404837946,1770610240366,-500.0,0.00044356,120]
[404837947,1770610240377,-500.0,0.00044356,120]
[404837948,1770610240387,-500.0,0.00044356,120]
[404837949,1770610240396,-500.0,0.00044356,120]
[404837950,1770610240405,-500.0,0.00044356,120]
[404837951,1770610240419,-500.0,0.00044356,120]
[404837952,1770610240428,-500.0,0.00044356,120]
[404837953,1770610240437,-500.0,0.00044356,120]
[404837954,1770610240447,-446.27737653,0.00044356,120]
[404837955,1770610240456,-532.69,0.00044356,120]
[404837956,1770610240465,-532.69,0.00044356,120]
[404837957,1770610240474,-532.69,0.00044356,120]
[404837958,1770610240485,-532.69,0.00044356,120]
[404837959,1770610240494,-532.69,0.00044356,120]
[404837960,1770610240503,-532.69,0.00044356,120]
[404837961,1770610240513,-500.0,0.00044356,120]
[404837962,1770610240523,-500.0,0.00044356,120]
[404837963,1770610240532,-500.0,0.00044356,120]
[404837964,1770610240542,-532.69,0.00044356,120]
[404837965,1770610240555,-500.0,0.00044356,120]
[404837966,1770610240565,-500.0,0.00044356,120]
[404837967,1770610240574,-532.69,0.00044356,120]
[404837968,1770610240584,-500.0,0.00044356,120]
[404837969,1770610240594,-500.0,0.00044356,120]
[404837970,1770610240603,-532.69,0.00044356,120]
[404837971,1770610240612,-500.0,0.00044356,120]
[404837972,1770610240622,-500.0,0.00044356,120]
[404837973,1770610240632,-532.69,0.00044356,120]
[404837974,1770610240648,-500.0,0.00044356,120]
[404837975,1770610240657,-500.0,0.00044356,120]
[404837976,1770610240667,-532.69,0.00044356,120]
[404837977,1770610240676,-500.0,0.00044356,120]
[404837978,1770610240685,-500.0,0.00044356,120]
[404837979,1770610240697,-532.69,0.00044356,120]
[404837980,1770610240707,-500.0,0.00044356,120]
[404837981,1770610240716,-500.0,0.00044356,120]
[404837982,1770610240725,-532.69,0.00044356,120]
[404837983,1770610240734,-500.0,0.00044356,120]
[404837984,1770610240744,-500.0,0.00044356,120]
[404837985,1770610240753,-532.69,0.00044356,120]
[404837986,1770610240762,-500.0,0.00044356,120]
[404837987,1770610240772,-500.0,0.00044356,120]
[404837988,1770610240781,-500.0,0.00044356,120]
[404837989,1770610240790,-500.0,0.00044356,120]
[404837990,1770610240799,-532.69,0.00044356,120]
[404837991,1770610240808,-500.0,0.00044356,120]
[404837992,1770610240817,-467.57371895,0.00044356,120]
[404837993,1770610240826,-532.69,0.00044356,120]
[404837994,1770610240835,-500.0,0.00044356,120]
[404837995,1770610240845,-500.0,0.00044356,120]
[404837996,1770610240854,-311.41010535,0.00044356,120]
[404837997,1770610240863,-500.0,0.00044356,120]
[404837998,1770610240873,-587.98423764,0.00044356,120]
[404837999,1770610240882,-500.0,0.00044356,120]
[404838000,1770610240891,-500.0,0.00044356,120]
[404838001,1770610240901,-500.0,0.00044356,120]
[404838002,1770610240910,-500.0,0.00044356,120]
[404838003,1770610240919,-648.69826355,0.00044356,120]
[404838004,1770610240928,-500.0,0.00044356,120]
[404838005,1770610240937,-500.0,0.00044356,120]
[404838006,1770610240946,-556.21196127,0.00044356,120]
[404838007,1770610240955,-500.0,0.00044356,120]
[404838008,1770610240965,-500.0,0.00044356,120]
[404838009,1770610240974,-500.0,0.00044356,120]
[404838010,1770610240984,-500.0,0.00044356,120]
[404838011,1770610240993,-500.0,0.00044356,120]
[404838012,1770610241003,-500.0,0.00044356,120]
[404838013,1770610241012,-353.68,0.00044356,120]
[404838014,1770610241021,-500.0,0.00044356,120]
[404838015,1770610241030,-500.0,0.00044356,120]
[404838016,1770610241038,-500.0,0.00044356,120]
[404838017,1770610241048,-500.0,0.00044356,120]
[404838018,1770610241057,-500.0,0.00044356,120]
[404838019,1770610241066,-500.0,0.00044356,120]
[404838020,1770610241075,-500.0,0.00044356,120]
[404838021,1770610241084,-450.02670222,0.00044356,120]
[404838022,1770610241094,-600.6410959,0.00044356,120]
[404838023,1770610241103,-3485.0,0.00044359,2]
[404838024,1770610241112,-500.0,0.00044366,120]
[404838025,1770610241123,-40582.0,0.00044367,30]
[404838026,1770610241132,-200.0,0.00044437,120]
[404838027,1770610241141,-250.0,0.00044442,30]
[404838028,1770610241150,-250.0,0.00044442,54]
[404838029,1770610241159,-250.0,0.00044442,60]
[404838030,1770610241169,-500.0,0.00044442,30]
[404838031,1770610241178,-500.0,0.00044442,54]
[404838032,1770610241190,-500.0,0.00044442,60]
[404838033,1770610241201,-250.0,0.00044442,30]
[404838034,1770610241211,-250.0,0.00044442,54]
[404838035,1770610241221,-250.0,0.00044442,60]
[404838036,1770610241230,-250.0,0.00044442,30]
[404838037,1770610241240,-250.0,0.00044442,54]
[404838038,1770610241250,-250.0,0.00044442,60]
[404838039,1770610241260,-500.0,0.00044442,30]
[404838040,1770610241270,-500.0,0.00044442,54]
[404838041,1770610241279,-500.0,0.00044442,60]
[404838042,1770610241288,-250.0,0.00044442,30]
[404838043,1770610241298,-250.0,0.00044442,54]
[404838044,1770610241308,-250.0,0.00044442,60]
[404838045,1770610241317,-250.0,0.00044442,30]
[404838046,1770610241326,-259.48658918,0.00044442,54]
[404838047,1770610241335,-41217.3103158,0.00044448,2]
[404838048,1770610241345,-6734.0091956,0.00044448,2]
[404838049,1770610241354,-250.0,0.00044448,54]
[404838050,1770610241364,-250.0,0.00044448,54]
[404838051,1770610241378,-250.0,0.00044448,60]
[404838052,1770610241387,-250.0,0.00044448,60]
[404838053,1770610241396,-250.0,0.00044448,120]
[404838054,1770610241406,-500.0,0.00044448,54]
[404838055,1770610241418,-500.0,0.00044448,60]
[404838056,1770610241427,-500.0,0.00044448,120]
[404838057,1770610241436,-215.0738,0.00044448,54]
[404838058,1770610241447,-250.0,0.00044448,54]
[404838059,1770610241457,-250.0,0.00044448,60]
[404838060,1770610241467,-250.0,0.00044448,120]
[404838061,1770610241476,-250.0,0.00044448,54]
[404838062,1770610241488,-250.0,0.00044448,60]
[404838063,1770610241498,-250.0,0.00044448,120]
[404838064,1770610241507,-500.0,0.00044448,54]
[404838065,1770610241516,-500.0,0.00044448,60]
[404838066,1770610241526,-500.0,0.00044448,120]
[404838067,1770610241536,-250.0,0.00044448,54]
[404838068,1770610241545,-250.0,0.00044448,60]
[404838069,1770610241554,-250.0,0.00044448,120]
[404838070,1770610241563,-250.0,0.00044448,54]
[404838071,1770610241573,-250.0,0.00044448,60]
[404838072,1770610241582,-250.0,0.00044448,120]
[404838073,1770610241592,-573.23347232,0.00044449,2]
[404838074,1770610241602,-151.0,0.00044449,30]
[404838075,1770610241611,-500.0,0.00044449,120]
[404838076,1770610241622,-510.89,0.00044449,120]
[404838077,1770610241631,-532.69,0.00044449,120]
[404838078,1770610241641,-532.69,0.00044449,120]
[404838079,1770610241651,-532.69,0.00044449,120]
[404838080,1770610241659,-532.69,0.00044449,120]
[404838081,1770610241668,-532.69,0.00044449,120]
[404838082,1770610241677,-532.69,0.00044449,120]
[404838083,1770610241687,-532.69,0.00044449,120]
[404838084,1770610241696,-532.87092342,0.00044449,120]
[404838085,1770610241705,-486.93455806,0.00044449,120]
[404838086,1770610241714,-371.95355402,0.00044449,120]
[404838087,1770610241724,-386.72015057,0.00044449,15]
[404838088,1770610241733,-405.57202391,0.00044449,120]
[404838089,1770610241742,-455.83322579,0.00044449,7]
[404838090,1770610241751,-458.43584939,0.00044449,120]
[404838091,1770610241760,-500.0,0.00044449,120]
[404838092,1770610241770,-343.13440226,0.00044449,120]
[404838093,1770610241779,-500.0,0.00044449,120]
[404838094,1770610241789,-500.0,0.00044449,120]
[404838095,1770610241798,-500.0,0.00044449,120]
[404838096,1770610241807,-507.78575835,0.00044449,120]